fUST/lending_fUST_20240803
["ID","MTS","AMOUNT","RATE_DAILY","PERIOD"]
[333932899,1722634247495,-844.72,0.00015342,2]
[333932900,1722634247507,-954.1,0.00015342,2]
[333932901,1722634247518,-790.16,0.00015342,2]
[333932902,1722634247529,-500.0,0.00015342,2]
[333932903,1722634247539,-500.0,0.00015342,2]
[333932904,1722634247549,-500.0,0.00015342,2]
[333932905,1722634247560,-500.0,0.00015342,2]
[333932906,1722634247571,-400.0,0.00015342,2]
[333932907,1722634247581,-3844.8445887,0.00015429,2]
[333932908,1722634247592,-309.94892261,0.00015436,2]
[333932909,1722634247602,-150.112233,0.000155,2]
[333932910,1722634247612,-606.0,0.000155,2]
[333932911,1722634247624,-150.0,0.0001555,2]
[333932912,1722634247636,-561.84,0.00015596,2]
[333932913,1722634247648,-150.112233,0.000156,2]
[333932914,1722634247658,-561.84,0.00015605,2]
[333932915,1722634247668,-561.84,0.00015606,2]
[333932916,1722634247679,-561.84,0.00015606,2]
[333932917,1722634247689,-561.84,0.00015606,2]
[333932918,1722634247699,-561.84,0.00015606,2]
[333932919,1722634247709,-561.84,0.00015606,2]
[333932920,1722634247720,-561.86,0.00015606,2]
[333932921,1722634247730,-1381.49,0.00015615,2]
[333932922,1722634247741,-525.05,0.00015615,2]
[333932923,1722634247751,-2301.46,0.00015615,2]
[333932924,1722634247760,-500.0,0.00015616,2]
[333932925,1722634247770,-500.0,0.00015616,2]
[333932926,1722634247780,-500.0,0.00015616,2]
[333932927,1722634247792,-528.6,0.00015616,2]
[333932928,1722634247803,-500.0,0.00015616,2]
[333932929,1722634247813,-656.97,0.00015616,2]
[333932930,1722634247825,-500.0,0.00015616,2]
[333932931,1722634247836,-611.09390042,0.00015616,2]
[333932932,1722634247847,-674.5,0.00015616,2]
[333932933,1722634247857,-813.006301,0.00015616,2]
[333932934,1722634247868,-813.006301,0.00015616,2]
[333932935,1722634247878,-707.39,0.00015616,2]
[333932936,1722634247888,-3342.56,0.00015616,2]
[333932937,1722634247900,-172.582039,0.00015616,2]
[333932938,1722634247910,-172.582039,0.00015616,2]
[333932939,1722634247920,-500.0,0.00015616,2]
[333932940,1722634247931,-500.0,0.00015616,2]
[333932941,1722634247942,-1440.92,0.00015616,2]
[333932942,1722634247951,-559.16,0.00015616,2]
[333932943,1722634247962,-731.41,0.00015616,2]
[333932944,1722634247972,-536.64,0.00015616,2]
[333932945,1722634247981,-500.0,0.00015616,2]
[333932946,1722634247990,-500.0,0.00015616,2]
[333932947,1722634248000,-1188.46,0.00015616,2]
[333932948,1722634248009,-500.0,0.00015616,2]
[333932949,1722634248018,-1578.88,0.00015616,2]
[333932950,1722634248028,-833.64,0.00015616,2]
[333932951,1722634248052,-500.0,0.00015616,2]
[333932952,1722634248061,-500.0,0.00015616,2]
[333932953,1722634248070,-500.0,0.00015616,2]
[333932954,1722634248080,-500.0,0.00015616,2]
[333932955,1722634248089,-500.0,0.00015616,2]
[333932956,1722634248099,-500.0,0.00015616,2]
[333932957,1722634248108,-500.0,0.00015616,2]
[333932958,1722634248117,-500.0,0.00015616,2]
[333932959,1722634248126,-500.0,0.00015616,2]
[333932960,1722634248137,-1002.94,0.00015616,2]
[333932961,1722634248146,-521.98,0.00015616,2]
[333932962,1722634248156,-671.57,0.00015616,2]
[333932963,1722634248166,-560.13,0.00015616,2]
[333932964,1722634248175,-500.0,0.00015616,2]
[333932965,1722634248185,-500.0,0.00015616,2]
[333932966,1722634248195,-500.0,0.00015616,2]
[333932967,1722634248204,-500.0,0.00015616,2]
[333932968,1722634248214,-685.27,0.00015616,2]
[333932969,1722634248224,-500.0,0.00015616,2]
[333932970,1722634248234,-653.26,0.00015616,2]
[333932971,1722634248243,-151.0,0.00015616,2]
[333932972,1722634248253,-2615.77,0.00015616,2]
[333932973,1722634248269,-500.0,0.00015616,2]
[333932974,1722634248285,-844.72,0.00015616,2]
[333932975,1722634248299,-954.1,0.00015616,2]
[333932976,1722634248312,-795.644266,0.00015616,2]
[333932977,1722634248327,-795.644266,0.00015616,2]
[333932978,1722634248341,-790.16,0.00015616,2]
[333932979,1722634248356,-500.0,0.00015616,2]
[333932980,1722634248370,-500.0,0.00015616,2]
[333932981,1722634248386,-500.0,0.00015616,2]
[333932982,1722634248399,-525.881845,0.00015616,2]
[333932983,1722634248412,-525.881845,0.00015616,2]
[333932984,1722634248428,-500.0,0.00015616,2]
[333932985,1722634248442,-1381.49,0.00015706,2]
[333932986,1722634248457,-1381.49,0.00015706,2]
[333932987,1722634248472,-1381.49,0.00015706,2]
[333932988,1722634248483,-1381.49,0.00015706,2]
[333932989,1722634248496,-1381.49,0.00015707,2]
[333932990,1722634248510,-151.0,0.00015707,2]
[333932991,1722634248526,-151.0,0.00015707,2]
[333932992,1722634248538,-915.336689,0.00015707,2]
[333932993,1722634248553,-915.336689,0.00015707,2]
[333932994,1722634248567,-655.530774,0.00015707,2]
[333932995,1722634248579,-151.0,0.00015707,2]
[333932996,1722634248590,-655.530774,0.00015707,2]
[333932997,1722634248600,-151.0,0.00015707,2]
[333932998,1722634248614,-151.0,0.00015707,2]
[333932999,1722634248628,-30000.0,0.00015707,2]
[333933000,1722634248640,-1991.27486297,0.00015708,2]
[333933001,1722634248654,-1162.50606328,0.00015708,2]
[333933002,1722634248666,-1598.52241151,0.00015708,2]
[333933003,1722634248680,-492.34831513,0.00015708,2]
[333933004,1722634248691,-151.0,0.00015708,2]
[333933005,1722634248702,-1381.49,0.00015708,2]
[333933006,1722634248714,-151.0,0.00015708,2]
[333933007,1722634248727,-239.722713,0.00015708,2]
[333933008,1722634248738,-239.722713,0.00015708,2]
[333933009,1722634248751,-151.0,0.00015708,2]
[333933010,1722634248763,-151.0,0.00015708,2]
[333933011,1722634248775,-209.14855116,0.00015708,2]
[333933012,1722634248789,-210.348975,0.00015709,2]
[333933013,1722634248801,-210.348975,0.00015709,2]
[333933014,1722634248813,-151.0,0.00015709,2]
[333933015,1722634248825,-795.644266,0.00015709,2]
[333933016,1722634248838,-795.644266,0.00015709,2]
[333933017,1722634248849,-525.881845,0.00015709,2]
[333933018,1722634248862,-525.881845,0.00015709,2]
[333933019,1722634248875,-1381.49,0.00015735,2]
[333933020,1722634248886,-1381.49,0.00015743,2]
[333933021,1722634248898,-200.14914537,0.00015773,2]
[333933022,1722634248910,-155.0,0.0001579,2]
[333933023,1722634248923,-823.0,0.00015824,2]
[333933024,1722634248936,-1381.49,0.00015889,2]
[333933025,1722634248949,-525.05,0.00015889,2]
[333933026,1722634248961,-2301.46,0.00015889,2]
[333933027,1722634248975,-500.0,0.0001589,2]
[333933028,1722634248988,-500.0,0.0001589,2]
[333933029,1722634249000,-500.0,0.0001589,2]
[333933030,1722634249014,-528.6,0.0001589,2]
[333933031,1722634249026,-500.0,0.0001589,2]
[333933032,1722634249038,-656.97,0.0001589,2]
[333933033,1722634249051,-151.0,0.0001589,2]
[333933034,1722634249066,-151.0,0.0001589,2]
[333933035,1722634249077,-151.0,0.0001589,2]
[333933036,1722634249087,-500.0,0.0001589,2]
[333933037,1722634249097,-674.5,0.0001589,2]
[333933038,1722634249107,-707.39,0.0001589,2]
[333933039,1722634249118,-3342.56,0.0001589,2]
[333933040,1722634249128,-500.0,0.0001589,2]
[333933041,1722634249139,-500.0,0.0001589,2]
[333933042,1722634249149,-1440.92,0.0001589,2]
[333933043,1722634249159,-559.16,0.0001589,2]
[333933044,1722634249169,-731.41,0.0001589,2]
[333933045,1722634249178,-536.64,0.0001589,2]
[333933046,1722634249187,-500.0,0.0001589,2]
[333933047,1722634249198,-500.0,0.0001589,2]
[333933048,1722634249207,-1188.46,0.0001589,2]
[333933049,1722634249217,-500.0,0.0001589,2]
[333933050,1722634249228,-1578.88,0.0001589,2]
[333933051,1722634249387,-833.64,0.0001589,2]
[333933052,1722634249402,-500.0,0.0001589,2]
[333933053,1722634249412,-500.0,0.0001589,2]
[333933054,1722634249422,-500.0,0.0001589,2]
[333933055,1722634249433,-500.0,0.0001589,2]
[333933056,1722634249444,-500.0,0.0001589,2]
[333933057,1722634249455,-500.0,0.0001589,2]
[333933058,1722634249467,-500.0,0.0001589,2]
[333933059,1722634249477,-500.0,0.0001589,2]
[333933060,1722634249487,-500.0,0.0001589,2]
[333933061,1722634249496,-1002.94,0.0001589,2]
[333933062,1722634249506,-521.98,0.0001589,2]
[333933063,1722634249516,-671.57,0.0001589,2]
[333933064,1722634249526,-560.13,0.0001589,2]
[333933065,1722634249535,-500.0,0.0001589,2]
[333933066,1722634249545,-500.0,0.0001589,2]
[333933067,1722634249555,-500.0,0.0001589,2]
[333933068,1722634249565,-500.0,0.0001589,2]
[333933069,1722634249575,-685.27,0.0001589,2]
[333933070,1722634249584,-500.0,0.0001589,2]
[333933071,1722634249594,-653.26,0.0001589,2]
[333933072,1722634249604,-2615.77,0.0001589,2]
[333933073,1722634249613,-500.0,0.0001589,2]
[333933074,1722634249623,-844.72,0.0001589,2]
[333933075,1722634249633,-954.1,0.0001589,2]
[333933076,1722634249642,-790.16,0.0001589,2]
[333933077,1722634249652,-500.0,0.0001589,2]
[333933078,1722634249662,-500.0,0.0001589,2]
[333933079,1722634249672,-500.0,0.0001589,2]
[333933080,1722634249681,-500.0,0.0001589,2]
[333933081,1722634249691,-67192.88216723,0.00015953,2]
[333933082,1722634249700,-150.0,0.00016,2]
[333933083,1722634249710,-151.0,0.00016038,2]
[333933084,1722634249720,-151.0,0.00016038,2]
[333933085,1722634249730,-915.336689,0.00016038,2]
[333933086,1722634249740,-915.336689,0.00016038,2]
[333933087,1722634249749,-655.530774,0.00016038,2]
[333933088,1722634249759,-151.0,0.00016038,2]
[333933089,1722634249769,-655.530774,0.00016038,2]
[333933090,1722634249778,-151.0,0.00016038,2]
[333933091,1722634249787,-1381.49,0.00016153,2]
[333933092,1722634249797,-1381.49,0.00016163,2]
[333933093,1722634249806,-525.05,0.00016163,2]
[333933094,1722634249816,-2301.46,0.00016163,2]
[333933095,1722634249826,-500.0,0.00016164,2]
[333933096,1722634249835,-500.0,0.00016164,2]
[333933097,1722634249845,-500.0,0.00016164,2]
[333933098,1722634249854,-151.0,0.00016164,2]
[333933099,1722634249864,-528.6,0.00016164,2]
[333933100,1722634249875,-500.0,0.00016164,2]
[333933101,1722634249884,-656.97,0.00016164,2]
[333933102,1722634249894,-500.0,0.00016164,2]
[333933103,1722634249904,-674.5,0.00016164,2]
[333933104,1722634249915,-813.006301,0.00016164,2]
[333933105,1722634249926,-813.006301,0.00016164,2]
[333933106,1722634249936,-707.39,0.00016164,2]
[333933107,1722634249947,-3342.56,0.00016164,2]
[333933108,1722634249958,-172.582039,0.00016164,2]
[333933109,1722634249968,-172.582039,0.00016164,2]
[333933110,1722634249978,-500.0,0.00016164,2]
[333933111,1722634249988,-500.0,0.00016164,2]
[333933112,1722634249998,-1440.92,0.00016164,2]
[333933113,1722634250007,-559.16,0.00016164,2]
[333933114,1722634250017,-731.41,0.00016164,2]
[333933115,1722634250026,-536.64,0.00016164,2]
[333933116,1722634250036,-151.0,0.00016164,2]
[333933117,1722634250045,-481.56700044,0.00016164,2]
[333933118,1722634250055,-500.0,0.00016164,2]
[333933119,1722634250064,-239.722713,0.00016164,2]
[333933120,1722634250074,-1188.46,0.00016164,2]
[333933121,1722634250083,-239.722713,0.00016164,2]
[333933122,1722634250093,-151.0,0.00016164,2]
[333933123,1722634250103,-500.0,0.00016164,2]
[333933124,1722634250112,-1578.88,0.00016164,2]
[333933125,1722634250122,-151.0,0.00016164,2]
[333933126,1722634250132,-833.64,0.00016164,2]
[333933127,1722634250143,-500.0,0.00016164,2]
[333933128,1722634250152,-500.0,0.00016164,2]
[333933129,1722634250162,-500.0,0.00016164,2]
[333933130,1722634250172,-500.0,0.00016164,2]
[333933131,1722634250181,-500.0,0.00016164,2]
[333933132,1722634250191,-500.0,0.00016164,2]
[333933133,1722634250200,-500.0,0.00016164,2]
[333933134,1722634250210,-500.0,0.00016164,2]
[333933135,1722634250219,-500.0,0.00016164,2]
[333933136,1722634250230,-1002.94,0.00016164,2]
[333933137,1722634250240,-521.98,0.00016164,2]
[333933138,1722634250250,-671.57,0.00016164,2]
[333933139,1722634250260,-560.13,0.00016164,2]
[333933140,1722634250270,-500.0,0.00016164,2]
[333933141,1722634250279,-500.0,0.00016164,2]
[333933142,1722634250289,-241.08897548,0.00016164,2]
[333933143,1722634250298,-500.0,0.00016164,2]
[333933144,1722634250309,-685.27,0.00016164,2]
[333933145,1722634250318,-500.0,0.00016164,2]
[333933146,1722634250328,-653.26,0.00016164,2]
[333933147,1722634250338,-2615.77,0.00016164,2]
[333933148,1722634250348,-500.0,0.00016164,2]
[333933149,1722634250358,-844.72,0.00016164,2]
[333933150,1722634250369,-954.1,0.00016164,2]
[333933151,1722634250378,-790.16,0.00016164,2]
[333933152,1722634250388,-500.0,0.00016164,2]
[333933153,1722634250398,-500.0,0.00016164,2]
[333933154,1722634250407,-399.14333879,0.00016164,2]
[333933155,1722634250417,-500.0,0.00016164,2]
[333933156,1722634250429,-150.112233,0.000163,2]
[333933157,1722634250439,-151.0,0.00016347,2]
[333933158,1722634250449,-1381.49,0.00016437,2]
[333933159,1722634250459,-1381.49,0.00016437,2]
[333933160,1722634250470,-1381.49,0.00016437,2]
[333933161,1722634250480,-1381.49,0.00016437,2]
[333933162,1722634250490,-1381.71403032,0.00016437,2]
[333933163,1722634250500,-525.05,0.00016437,2]
[333933164,1722634250510,-2301.46,0.00016437,2]
[333933165,1722634250520,-500.0,0.00016438,2]
[333933166,1722634250530,-500.0,0.00016438,2]
[333933167,1722634250540,-500.0,0.00016438,2]
[333933168,1722634250550,-528.6,0.00016438,2]
[333933169,1722634250560,-500.0,0.00016438,2]
[333933170,1722634250569,-656.97,0.00016438,2]
[333933171,1722634250580,-500.0,0.00016438,2]
[333933172,1722634250589,-674.5,0.00016438,2]
[333933173,1722634250601,-707.39,0.00016438,2]
[333933174,1722634250612,-3342.56,0.00016438,2]
[333933175,1722634250622,-500.0,0.00016438,2]
[333933176,1722634250632,-500.0,0.00016438,2]
[333933177,1722634250642,-1440.92,0.00016438,2]
[333933178,1722634250651,-559.16,0.00016438,2]
[333933179,1722634250661,-731.41,0.00016438,2]
[333933180,1722634250671,-536.64,0.00016438,2]
[333933181,1722634250681,-500.0,0.00016438,2]
[333933182,1722634250691,-1188.46,0.00016438,2]
[333933183,1722634250700,-567.91865513,0.00016438,2]
[333933184,1722634250709,-1578.88,0.00016438,2]
[333933185,1722634250719,-833.64,0.00016438,2]
[333933186,1722634250730,-500.0,0.00016438,2]
[333933187,1722634250739,-500.0,0.00016438,2]
[333933188,1722634250749,-500.0,0.00016438,2]
[333933189,1722634250759,-500.0,0.00016438,2]
[333933190,1722634250769,-500.0,0.00016438,2]
[333933191,1722634250779,-500.0,0.00016438,2]
[333933192,1722634250788,-500.0,0.00016438,2]
[333933193,1722634250798,-500.0,0.00016438,2]
[333933194,1722634250808,-500.0,0.00016438,2]
[333933195,1722634250818,-1002.94,0.00016438,2]
[333933196,1722634250828,-521.98,0.00016438,2]
[333933197,1722634250837,-671.57,0.00016438,2]
[333933198,1722634250847,-560.13,0.00016438,2]
[333933199,1722634250857,-500.0,0.00016438,2]
[333933200,1722634250868,-500.0,0.00016438,2]
[333933201,1722634250879,-500.0,0.00016438,2]
[333933202,1722634250888,-685.27,0.00016438,2]
[333933203,1722634250898,-305.64577139,0.00016438,2]
[333933204,1722634250908,-653.26,0.00016438,2]
[333933205,1722634250917,-2615.77,0.00016438,2]
[333933206,1722634250928,-500.0,0.00016438,2]
[333933207,1722634250938,-954.1,0.00016438,2]
[333933208,1722634250948,-844.72,0.00016438,2]
[333933209,1722634250958,-790.16,0.00016438,2]
[333933210,1722634250967,-500.0,0.00016438,2]
[333933211,1722634250977,-500.0,0.00016438,2]
[333933212,1722634250986,-500.0,0.00016438,2]
[333933213,1722634250997,-525.05,0.00016711,2]
[333933214,1722634251007,-2301.46,0.00016711,2]
[333933215,1722634251017,-500.0,0.00016712,2]
[333933216,1722634251026,-500.0,0.00016712,2]
[333933217,1722634251035,-230.96023664,0.00016712,2]
[333933218,1722634251045,-528.6,0.00016712,2]
[333933219,1722634251054,-500.0,0.00016712,2]
[333933220,1722634251066,-656.97,0.00016712,2]
[333933221,1722634251076,-210.348975,0.00016712,2]
[333933222,1722634251086,-210.348975,0.00016712,2]
[333933223,1722634251095,-500.0,0.00016712,2]
[333933224,1722634251105,-151.0,0.00016712,2]
[333933225,1722634251115,-674.5,0.00016712,2]
[333933226,1722634251127,-707.39,0.00016712,2]
[333933227,1722634251137,-3342.56,0.00016712,2]
[333933228,1722634251148,-500.0,0.00016712,2]
[333933229,1722634251158,-500.0,0.00016712,2]
[333933230,1722634251167,-1440.92,0.00016712,2]
[333933231,1722634251177,-559.16,0.00016712,2]
[333933232,1722634251189,-731.41,0.00016712,2]
[333933233,1722634251198,-536.64,0.00016712,2]
[333933234,1722634251207,-500.0,0.00016712,2]
[333933235,1722634251217,-1188.46,0.00016712,2]
[333933236,1722634251228,-1578.88,0.00016712,2]
[333933237,1722634251238,-833.64,0.00016712,2]
[333933238,1722634251248,-500.0,0.00016712,2]
[333933239,1722634251257,-409.14730754,0.00016712,2]
[333933240,1722634251267,-500.0,0.00016712,2]
[333933241,1722634251277,-500.0,0.00016712,2]
[333933242,1722634251287,-500.0,0.00016712,2]
[333933243,1722634251296,-500.0,0.00016712,2]
[333933244,1722634251306,-500.0,0.00016712,2]
[333933245,1722634251315,-500.0,0.00016712,2]
[333933246,1722634251325,-500.0,0.00016712,2]
[333933247,1722634251334,-1002.94,0.00016712,2]
[333933248,1722634251343,-521.98,0.00016712,2]
[333933249,1722634251353,-671.57,0.00016712,2]
[333933250,1722634251363,-560.13,0.00016712,2]
[333933251,1722634251373,-500.0,0.00016712,2]
[333933252,1722634251384,-500.0,0.00016712,2]
[333933253,1722634251393,-500.0,0.00016712,2]
[333933254,1722634251403,-685.27,0.00016712,2]
[333933255,1722634251412,-653.26,0.00016712,2]
[333933256,1722634251421,-358.50659303,0.00016712,2]
[333933257,1722634251597,-500.0,0.00013698,2]
[333933258,1722634251608,-500.0,0.00013972,2]
[333933259,1722634251621,-1580.48739686,0.00016712,2]
[333933260,1722634251650,-500.0,0.00013698,2]
[333933261,1722634251660,-500.0,0.00014246,2]
[333933262,1722634251670,-676.77601011,0.00016712,2]
[333933263,1722634251679,-500.0,0.00016712,2]
[333933264,1722634251688,-823.22398989,0.00016712,2]
[333933265,1722634251701,-130.87601011,0.00016712,2]
[333933266,1722634251711,-795.644266,0.00016712,2]
[333933267,1722634251720,-844.72,0.00016712,2]
[333933268,1722634251730,-795.644266,0.00016712,2]
[333933269,1722634251739,-790.16,0.00016712,2]
[333933270,1722634251749,-500.0,0.00016712,2]
[333933271,1722634251759,-500.0,0.00016712,2]
[333933272,1722634251768,-525.881845,0.00016712,2]
[333933273,1722634251778,-525.881845,0.00016712,2]
[333933274,1722634251787,-500.0,0.00016712,2]
[333933275,1722634251797,-2795.94237491,0.0001672,2]
[333933276,1722634251807,-525.05,0.00016985,2]
[333933277,1722634251817,-2301.46,0.00016985,2]
[333933278,1722634251827,-500.0,0.00016986,2]
[333933279,1722634251836,-528.6,0.00016986,2]
[333933280,1722634251845,-500.0,0.00016986,2]
[333933281,1722634251855,-656.97,0.00016986,2]
[333933282,1722634251965,-500.0,0.00016986,2]
[333933283,1722634251974,-674.5,0.00016986,2]
[333933284,1722634251984,-707.39,0.00016986,2]
[333933285,1722634251994,-3342.56,0.00016986,2]
[333933286,1722634252003,-500.0,0.00016986,2]
[333933287,1722634252013,-500.0,0.00016986,2]
[333933288,1722634252022,-1440.92,0.00016986,2]
[333933289,1722634252033,-559.16,0.00016986,2]
[333933290,1722634252042,-731.41,0.00016986,2]
[333933291,1722634252052,-536.64,0.00016986,2]
[333933292,1722634252063,-500.0,0.00016986,2]
[333933293,1722634252072,-1188.46,0.00016986,2]
[333933294,1722634252081,-1578.88,0.00016986,2]
[333933295,1722634252091,-833.64,0.00016986,2]
[333933296,1722634252101,-500.0,0.00016986,2]
[333933297,1722634252111,-500.0,0.00016986,2]
[333933298,1722634252121,-500.0,0.00016986,2]
[333933299,1722634252131,-500.0,0.00016986,2]
[333933300,1722634252143,-500.0,0.00016986,2]
[333933301,1722634252153,-500.0,0.00016986,2]
[333933302,1722634252162,-500.0,0.00016986,2]
[333933303,1722634252171,-500.0,0.00016986,2]
[333933304,1722634252181,-1002.94,0.00016986,2]
[333933305,1722634252191,-521.98,0.00016986,2]
[333933306,1722634252201,-671.57,0.00016986,2]
[333933307,1722634252211,-560.13,0.00016986,2]
[333933308,1722634252220,-500.0,0.00016986,2]
[333933309,1722634252229,-500.0,0.00016986,2]
[333933310,1722634252239,-500.0,0.00016986,2]
[333933311,1722634252248,-685.27,0.00016986,2]
[333933312,1722634252259,-653.26,0.00016986,2]
[333933313,1722634252268,-2615.77,0.00016986,2]
[333933314,1722634252277,-500.0,0.00016986,2]
[333933315,1722634252286,-954.1,0.00016986,2]
[333933316,1722634252297,-844.72,0.00016986,2]
[333933317,1722634252322,-790.16,0.00016986,2]
[333933318,1722634252331,-500.0,0.00016986,2]
[333933319,1722634252341,-500.0,0.00016986,2]
[333933320,1722634252350,-500.0,0.00016986,2]
[333933321,1722634252360,-813.006301,0.00017019,2]
[333933322,1722634252369,-813.006301,0.00017019,2]
[333933323,1722634252379,-172.582039,0.00017019,2]
[333933324,1722634252389,-172.582039,0.00017019,2]
[333933325,1722634252399,-525.05,0.00017259,2]
[333933326,1722634252409,-2301.46,0.00017259,2]
[333933327,1722634252418,-500.0,0.0001726,2]
[333933328,1722634252433,-528.6,0.0001726,2]
[333933329,1722634252444,-500.0,0.0001726,2]
[333933330,1722634252458,-656.97,0.0001726,2]
[333933331,1722634252472,-500.0,0.0001726,2]
[333933332,1722634252482,-674.5,0.0001726,2]
[333933333,1722634252493,-707.39,0.0001726,2]
[333933334,1722634252503,-3342.56,0.0001726,2]
[333933335,1722634252514,-500.0,0.0001726,2]
[333933336,1722634252523,-500.0,0.0001726,2]
[333933337,1722634252534,-1440.92,0.0001726,2]
[333933338,1722634252545,-559.16,0.0001726,2]
[333933339,1722634252554,-731.41,0.0001726,2]
[333933340,1722634252563,-536.64,0.0001726,2]
[333933341,1722634252573,-500.0,0.0001726,2]
[333933342,1722634252582,-1188.46,0.0001726,2]
[333933343,1722634252592,-1578.88,0.0001726,2]
[333933344,1722634252603,-833.64,0.0001726,2]
[333933345,1722634252612,-500.0,0.0001726,2]
[333933346,1722634252622,-500.0,0.0001726,2]
[333933347,1722634252632,-500.0,0.0001726,2]
[333933348,1722634252643,-500.0,0.0001726,2]
[333933349,1722634252654,-500.0,0.0001726,2]
[333933350,1722634252664,-500.0,0.0001726,2]
[333933351,1722634252674,-207.22155817,0.0001726,2]
[333933352,1722634252684,-500.0,0.0001726,2]
[333933353,1722634252694,-1002.94,0.0001726,2]
[333933354,1722634252705,-521.98,0.0001726,2]
[333933355,1722634252715,-671.57,0.0001726,2]
[333933356,1722634252725,-560.13,0.0001726,2]
[333933357,1722634252736,-500.0,0.0001726,2]
[333933358,1722634252746,-500.0,0.0001726,2]
[333933359,1722634252756,-500.0,0.0001726,2]
[333933360,1722634252765,-685.27,0.0001726,2]
[333933361,1722634252775,-653.26,0.0001726,2]
[333933362,1722634252785,-2615.77,0.0001726,2]
[333933363,1722634252794,-500.0,0.0001726,2]
[333933364,1722634252806,-954.1,0.0001726,2]
[333933365,1722634252815,-844.72,0.0001726,2]
[333933366,1722634252825,-790.16,0.0001726,2]
[333933367,1722634252835,-500.0,0.0001726,2]
[333933368,1722634252844,-500.0,0.0001726,2]
[333933369,1722634252854,-500.0,0.0001726,2]
[333933370,1722634252864,-600.0,0.00017346,2]
[333933371,1722634252873,-151.0,0.00017389,2]
[333933372,1722634252883,-151.0,0.00017389,2]
[333933373,1722634252893,-151.0,0.00017402,2]
[333933374,1722634252902,-1410.0,0.0001746,2]
[333933375,1722634252912,-525.05,0.00017533,2]
[333933376,1722634252922,-2301.46,0.00017533,2]
[333933377,1722634252932,-500.0,0.00017534,2]
[333933378,1722634252942,-528.6,0.00017534,2]
[333933379,1722634252952,-500.0,0.00017534,2]
[333933380,1722634252962,-656.97,0.00017534,2]
[333933381,1722634252972,-311.72229108,0.00017534,2]
[333933382,1722634252983,-674.5,0.00017534,2]
[333933383,1722634252993,-707.39,0.00017534,2]
[333933384,1722634253003,-3342.56,0.00017534,2]
[333933385,1722634253012,-500.0,0.00017534,2]
[333933386,1722634253021,-500.0,0.00017534,2]
[333933387,1722634253031,-1440.92,0.00017534,2]
[333933388,1722634253040,-151.0,0.00017534,2]
[333933389,1722634253049,-559.16,0.00017534,2]
[333933390,1722634253059,-731.41,0.00017534,2]
[333933391,1722634253068,-536.64,0.00017534,2]
[333933392,1722634253078,-500.0,0.00017534,2]
[333933393,1722634253087,-1188.46,0.00017534,2]
[333933394,1722634253096,-1578.88,0.00017534,2]
[333933395,1722634253107,-833.64,0.00017534,2]
[333933396,1722634253116,-332.13,0.00017534,2]
[333933397,1722634253126,-151.0,0.00017534,2]
[333933398,1722634253135,-151.0,0.00017534,2]